bitfinex/quotes_ETHUSD_20260107
["timestamp","ask_amount","ask_price","bid_price","bid_amount"]
[1767818544632,0.96674223,3140.3,3139.1,1.1066313]
[1767818544954,0.96674223,3140.2,3139.1,0.17460186]
[1767818545160,0.96674223,3140.2,3138.9,0.836]
[1767818545368,0.96674223,3140.2,3138.9,0.93202944]
[1767818545527,0.001,3139.1,3138.8,3.18593092]
[1767818545862,0.001,3139.1,3138.8,3.91633876]
[1767818546219,0.001,3139.1,3138.7,0.93202944]
[1767818546531,0.001,3139.1,3138.5,0.93202944]
[1767818547343,0.001,3139.1,3138.5,4.11820181]
[1767818547539,0.001,3139.1,3138.5,0.93202944]
[1767818548122,0.001,3139.1,3138.5,4.1182444]
[1767818549656,0.001,3139.1,3138.5,0.93202944]
[1767818549954,0.001,3139.1,3138.4,4.02229546]
[1767818549955,1.38305994,3139.1,3138.4,0.836]
[1767818550157,4.15337624,3139.1,3138.4,0.836]
[1767818550472,0.96674223,3139.0,3138.0,4.12071353]
[1767818550626,0.96674223,3138.8,3138.0,1.77002944]
[1767818551559,0.96674223,3138.8,3138.0,4.95671749]
[1767818551929,0.96674223,3138.8,3138.1,7.29048282]
[1767818552139,0.99465738,3139.0,3138.2,0.91719964]
[1767818554194,0.99465738,3139.0,3138.2,4.10364183]
[1767818554660,0.99465738,3138.9,3138.2,3.18644219]
[1767818555855,0.99465738,3138.9,3138.1,4.10379138]
[1767818557049,0.99465738,3138.8,3138.0,0.838]
[1767818557255,0.99465738,3138.8,3138.5,0.002]
[1767818560649,0.99465738,3139.0,3138.5,0.002]
[1767818561049,0.41812315,3139.0,3138.5,0.91919964]
[1767818561371,0.99565738,3139.1,3138.5,0.002]
[1767818563765,0.99565738,3139.1,3138.5,0.91919964]
[1767818564477,0.001,3139.1,3138.6,0.91719964]
[1767818565846,0.001,3139.1,3138.7,0.91719964]
[1767818566052,0.001,3139.1,3138.8,0.91719964]
[1767818566281,0.001,3139.1,3138.6,0.836]
[1767818566595,0.99565738,3139.1,3138.6,0.836]
[1767818568280,0.99465738,3139.0,3138.5,0.002]
[1767818569863,0.99465738,3138.9,3138.8,0.002]
[1767818570058,0.99465738,3138.8,3138.5,0.002]
[1767818571986,0.41814023,3138.9,3138.5,0.002]
[1767818572178,0.99465738,3139.0,3138.5,0.002]
[1767818572694,0.001,3139.1,3138.5,0.95106199]
[1767818572879,0.001,3139.1,3138.5,0.91919964]
[1767818573098,0.99565738,3139.1,3138.5,0.002]
[1767818574504,1.41277686,3139.0,3138.5,0.002]
[1767818574799,0.99465738,3138.9,3138.5,0.002]
[1767818578506,0.001,3139.1,3138.5,0.91919964]
[1767818580385,0.001,3139.1,3138.6,3.18613394]
[1767818580589,0.001,3139.1,3138.6,4.10333358]
[1767818581294,0.001,3139.1,3138.6,7.28946752]
[1767818581908,0.001,3139.1,3138.8,0.002]
[1767818584906,0.001,3139.1,3138.8,0.95616477]
[1767818585279,0.001,3139.1,3138.8,1.69219407]
[1767818586712,0.001,3139.1,3138.8,4.87802808]
[1767818587080,0.001,3139.1,3138.8,3.92386331]
[1767818587278,0.9115537,3139.1,3138.5,0.002]
[1767818588195,0.9115537,3139.1,3138.5,3.18820138]
[1767818588394,0.9115537,3139.1,3138.5,0.002]
[1767818591742,0.9115537,3139.1,3138.5,0.95616477]
[1767818592610,0.9115537,3139.1,3138.5,0.002]
[1767818593321,0.9115537,3139.1,3138.5,1.3704251]
[1767818593817,0.001,3139.1,3138.6,7.32643265]
[1767818594017,0.9105537,3139.5,3138.8,0.95416477]
[1767818594318,0.9105537,3139.5,3138.8,0.002]
[1767818594486,0.9105537,3139.4,3138.8,0.002]
[1767818594688,0.9105537,3139.3,3138.8,0.002]
[1767818596036,0.9105537,3139.2,3138.8,0.002]
[1767818600327,0.9105537,3139.2,3138.8,0.00081397]
[1767818605216,3.18526929,3139.5,3138.8,0.00081397]
[1767818605217,0.9105537,3139.5,3138.8,0.00081397]
[1767818605541,0.9105537,3139.5,3138.8,0.95497874]
[1767818605938,0.001,3138.9,3138.8,0.95497874]
[1767818606246,0.001,3138.9,3138.8,0.00081397]
[1767818608215,0.9105537,3139.7,3138.9,0.95416477]
[1767818608442,0.9105537,3139.7,3138.9,0.9529525]
[1767818608941,0.9105537,3139.7,3138.8,0.00081397]
[1767818609835,0.9105537,3139.6,3138.8,0.00081397]
[1767818610448,0.9105537,3139.6,3138.8,0.03267327]
[1767818610651,0.9105537,3139.5,3138.8,0.98683804]
[1767818611842,0.9105537,3139.5,3138.9,3.18582943]
[1767818612220,0.9105537,3139.5,3139.0,0.03185727]
[1767818612427,0.9105537,3139.5,3138.9,4.18253413]
[1767818613554,0.9105537,3139.5,3138.9,0.9967047]
[1767818614529,0.9105537,3139.5,3138.8,0.00081397]
[1767818614748,0.94559727,3139.3,3138.8,0.00081397]
[1767818615124,0.94559727,3139.3,3138.5,0.002]
[1767818615423,0.94559727,3139.3,3138.2,0.836]
[1767818616077,0.94559727,3139.2,3138.2,0.836]
[1767818616377,0.94559727,3139.2,3138.1,0.002]
[1767818616542,0.94559727,3138.9,3138.1,0.002]
[1767818619729,0.94559727,3138.8,3138.1,0.002]
[1767818621159,0.94559727,3138.8,3138.1,0.9987047]
[1767818621456,0.94559727,3138.8,3138.2,4.18324475]
[1767818622227,0.94559727,3138.8,3138.2,0.9967047]
[1767818622667,0.94559727,3139.0,3138.2,0.9967047]
[1767818622978,0.94559727,3138.9,3138.2,0.9967047]
[1767818625463,0.94559727,3138.7,3138.1,0.002]
[1767818630275,0.94559727,3138.5,3138.1,0.002]
[1767818630785,0.94559727,3138.5,3138.0,0.002]
[1767818631260,0.94559727,3138.5,3137.7,0.002]
[1767818631849,0.94559727,3138.3,3137.7,0.002]
[1767818633882,0.94559727,3138.2,3137.7,0.002]
[1767818634082,0.94559727,3138.2,3137.5,0.002]
[1767818634393,0.94559727,3138.0,3137.5,0.002]
[1767818635975,0.94559727,3137.9,3137.2,0.002]
[1767818637669,0.94559727,3137.9,3137.0,0.002]
[1767818638278,0.94559727,3137.7,3137.0,0.002]
[1767818638986,0.94559727,3137.7,3137.0,0.9987047]
[1767818639405,0.94559727,3137.9,3137.1,0.9967047]
[1767818640196,0.94559727,3137.9,3137.3,0.9967047]
[1767818640502,0.94559727,3138.1,3137.3,0.9967047]
[1767818641798,0.94559727,3138.1,3137.6,0.002]
[1767818641993,1.69431075,3138.0,3137.6,0.002]
[1767818642603,4.88105547,3138.0,3137.6,0.002]
[1767818645094,4.88105547,3138.0,3137.3,0.9987047]
[1767818645504,4.14886803,3138.3,3137.4,0.99482145]
[1767818646976,4.14978921,3138.4,3137.6,4.18193198]
[1767818647172,4.14978921,3138.4,3137.7,0.99482145]
[1767818647372,0.001,3138.4,3137.7,0.99482145]
[1767818647578,0.96242952,3138.3,3137.6,3.21898202]
[1767818647805,0.96342952,3138.4,3137.7,0.3218982]
[1767818648104,0.96342952,3138.4,3137.3,0.002]
[1767818648105,0.96242952,3138.3,3137.5,4.18201832]
[1767818648413,0.96242952,3138.3,3137.6,0.99482145]
[1767818649386,0.96242952,3138.3,3137.4,0.99482145]
[1767818649387,0.96242952,3138.2,3137.4,0.99482145]
[1767818652380,0.96242952,3138.3,3137.6,0.99482145]
[1767818654507,0.001,3137.9,3137.7,0.99482145]
[1767818654710,0.001,3137.9,3137.4,0.99482145]
[1767818655021,0.96342952,3137.9,3137.3,0.002]
[1767818655717,0.96342952,3137.9,3137.3,3.18944794]
[1767818656594,0.96342952,3137.9,3137.3,4.01023893]
[1767818657319,0.96342952,3137.9,3137.3,0.82279099]
[1767818657481,0.96242952,3137.7,3137.3,0.002]
[1767818657685,0.96242952,3137.7,3137.0,0.002]
[1767818658212,0.96242952,3137.7,3137.0,3.18975495]
[1767818660615,0.96242952,3137.7,3137.0,0.002]
[1767818660805,0.96242952,3137.6,3137.0,0.002]
[1767818662593,0.96242952,3137.6,3136.9,0.002]
[1767818662897,0.96242952,3137.6,3136.8,0.002]
[1767818663086,0.96242952,3137.4,3136.8,0.002]
[1767818664808,0.96242952,3137.4,3136.7,0.002]
[1767818665010,1.69612267,3137.3,3136.7,0.002]
[1767818665218,0.96242952,3137.2,3136.7,0.002]
[1767818668218,0.73369315,3137.3,3136.7,0.99682145]
[1767818668915,1.69612267,3137.3,3136.7,0.99682145]
[1767818671329,4.88357942,3137.3,3136.7,0.99682145]
[1767818671545,0.48845794,3137.2,3136.7,0.99682145]
[1767818672424,4.10681284,3137.4,3136.7,0.99682145]
[1767818672618,0.91840702,3137.3,3136.7,0.99682145]
[1767818674809,0.001,3137.4,3136.7,0.99682145]
[1767818675014,0.001,3137.4,3136.8,0.94466864]
[1767818677038,0.91940702,3137.4,3136.8,0.94466864]
[1767818677215,0.41066825,3137.3,3136.8,0.94466864]
[1767818680944,0.41066825,3137.3,3136.7,0.002]
[1767818681738,0.91840702,3137.2,3136.7,0.002]
[1767818685826,0.91940702,3137.4,3136.7,0.94666864]
[1767818687544,0.001,3137.4,3136.9,0.94466864]
[1767818687709,0.001,3137.4,3137.0,0.03187758]
[1767818687908,0.001,3137.4,3136.7,0.94666864]
[1767818688117,0.91940702,3137.4,3136.7,0.94666864]
[1767818688325,0.91940702,3137.4,3136.7,4.13470023]
[1767818688734,0.91940702,3137.4,3136.8,3.18795764]
[1767818688934,0.001,3137.4,3136.9,0.94466864]
[1767818690626,0.001,3137.1,3136.9,0.94466864]
[1767818691031,0.001,3137.1,3136.7,3.19001129]
[1767818691333,0.001,3137.1,3136.7,4.77250563]
[1767818692046,0.001,3137.1,3136.7,4.77255293]
[1767818695922,0.001,3137.1,3136.8,0.94466864]
[1767818698654,0.91940702,3137.4,3137.0,0.94466864]
[1767818698655,0.001,3137.4,3137.0,0.94466864]
[1767818698842,0.001,3137.4,3136.8,3.18795663]
[1767818698843,0.001,3137.9,3137.1,0.94466864]
[1767818699029,3.18739393,3138.4,3137.8,0.94466864]
[1767818699646,0.001,3138.4,3137.8,0.94466864]
[1767818699854,4.10581262,3138.4,3137.8,0.94466864]
[1767818700349,0.001,3138.4,3137.8,0.94466864]
[1767818700958,0.001,3138.4,3137.9,0.94466864]
[1767818701142,0.001,3138.4,3136.7,0.6398257]
[1767818701143,0.91840702,3138.2,3136.7,0.6398257]
[1767818701351,0.91840702,3138.2,3136.7,0.94666864]
[1767818701562,0.92163187,3138.0,3136.7,0.94666864]
[1767818701765,0.92163187,3137.8,3136.7,0.94666864]
[1767818702074,0.93791705,3137.7,3136.7,0.94666864]
[1767818702276,4.12526963,3137.4,3136.7,0.94666864]
[1767818702445,0.93791705,3137.3,3136.7,0.002]
[1767818703243,0.93791705,3137.3,3136.5,0.95105233]
[1767818703437,0.93791705,3137.3,3136.3,0.95105233]
[1767818703662,0.93791705,3137.1,3136.3,0.95105233]
[1767818704857,4.12560813,3137.1,3136.3,0.95105233]
[1767818705753,0.93791705,3137.1,3136.4,0.95105233]
[1767818706573,4.12562014,3137.1,3136.4,0.95105233]
[1767818707173,0.93791705,3136.9,3136.2,0.95305233]
[1767818707377,0.80444409,3137.0,3136.2,0.95305233]
[1767818707754,0.93791705,3136.9,3136.2,0.95305233]
[1767818707964,0.93791705,3136.9,3136.2,0.002]
[1767818708163,0.93791705,3136.9,3136.2,0.95305233]
[1767818708354,0.17423611,3136.8,3136.2,0.95305233]
[1767818708567,1.11215316,3136.8,3136.2,0.95305233]
[1767818708979,4.30018954,3136.8,3136.2,0.95305233]
[1767818709278,1.11215316,3136.8,3136.2,0.95305233]
[1767818709474,4.3001286,3136.8,3136.2,0.95305233]
[1767818709980,1.11215316,3136.8,3136.2,0.95305233]
[1767818710348,0.80444409,3137.0,3136.4,0.95105233]
[1767818710550,0.93791705,3137.0,3136.4,0.95105233]
[1767818711087,0.837,3137.3,3136.2,0.002]
[1767818711088,0.93791705,3136.8,3136.2,0.002]
[1767818711382,0.93791705,3136.8,3136.0,0.002]
[1767818711748,0.93791705,3136.7,3136.0,0.002]
[1767818711951,0.93791705,3136.5,3136.0,0.002]
[1767818713879,0.93791705,3136.4,3136.0,0.002]
[1767818714049,0.93791705,3136.4,3135.2,3.18954431]
[1767818714050,0.93791705,3136.4,3135.3,0.47295896]
[1767818715176,0.93791705,3136.4,3135.3,3.66242117]
[1767818715352,0.93791705,3136.2,3135.3,3.66242117]
[1767818716087,0.93791705,3136.2,3135.4,0.47295896]
[1767818717489,0.93791705,3136.2,3135.3,4.34762982]
[1767818717692,0.93791705,3136.1,3135.4,0.47295896]
[1767818719986,0.93791705,3136.1,3135.4,3.66234435]
[1767818720180,0.93791705,3136.1,3135.4,0.47295896]
[1767818720383,4.12659988,3136.1,3135.4,0.47295896]
[1767818720589,0.93791705,3136.0,3135.4,0.47295896]
[1767818720784,3.18857215,3136.2,3135.5,0.47295896]
[1767818720984,3.18841576,3136.4,3135.5,0.47295896]
[1767818721287,0.93791705,3136.3,3135.5,0.47295896]
[1767818721476,0.93791705,3136.2,3135.5,0.47295896]
[1767818721679,0.93791705,3136.1,3135.5,0.47295896]
[1767818722090,1.05033373,3136.2,3135.6,0.47295896]
[1767818722270,4.12648302,3136.3,3135.6,0.47295896]
[1767818724195,0.93791705,3136.3,3135.6,0.47295896]
[1767818724399,0.17749171,3136.6,3135.7,0.47295896]
[1767818724698,0.93791705,3137.1,3136.4,0.54338925]
[1767818725357,0.93791705,3137.4,3136.4,0.54338925]
[1767818725557,0.93791705,3137.6,3136.6,0.54338925]
[1767818726273,0.93791705,3137.5,3136.5,1.38038925]
[1767818726695,0.93791705,3137.5,3136.6,3.18814436]
[1767818726941,0.93791705,3137.5,3136.7,0.45685336]
[1767818727896,0.93791705,3137.5,3136.8,0.54338925]
[1767818728402,0.93791705,3137.4,3136.7,0.45685336]
[1767818728697,0.93791705,3137.4,3136.7,3.64489538]
[1767818728865,0.93791705,3137.4,3136.8,3.18794963]
[1767818729065,0.93791705,3137.4,3136.9,0.3644803]
[1767818729662,0.93791705,3137.4,3136.7,0.45685336]
[1767818729865,0.93791705,3137.4,3136.8,3.18794623]
[1767818730595,0.93791705,3137.4,3136.7,4.18826429]
[1767818731803,0.93791705,3137.4,3136.7,0.45685336]
[1767818733596,0.93791705,3137.4,3136.7,3.64488042]
[1767818733802,0.93791705,3137.4,3136.8,0.41882697]
[1767818734505,3.18728263,3137.5,3136.9,0.54338925]
[1767818734674,3.18728263,3137.5,3136.8,0.41882697]
[1767818734675,0.96809464,3137.5,3136.8,0.41882697]
[1767818735800,4.15536912,3137.5,3136.8,0.41882697]
[1767818735999,0.96809464,3137.4,3136.8,0.41882697]
[1767818736985,0.96809464,3137.4,3136.7,0.45685336]
[1767818737607,0.96809464,3137.3,3136.7,0.45685336]
[1767818738007,0.96809464,3137.3,3136.5,1.38038925]
[1767818738308,0.96809464,3137.3,3136.7,3.18805116]
[1767818739309,0.001,3137.1,3136.7,3.18805116]
[1767818742503,0.001,3137.1,3136.6,3.731539]
[1767818742504,0.001,3137.1,3136.6,0.54338925]
[1767818742706,0.96909464,3137.1,3136.5,0.837]
[1767818742919,0.001,3137.1,3136.6,0.54338925]
[1767818743076,0.001,3137.1,3136.6,3.73153714]
[1767818744107,0.001,3137.1,3136.6,0.54338925]
[1767818744283,0.001,3137.1,3136.6,3.73154673]
[1767818744483,0.001,3137.1,3136.7,0.54338925]
[1767818746903,0.001,3137.1,3136.7,3.73144964]
[1767818747129,0.001,3137.1,3136.7,0.54338925]
[1767818748024,0.96909464,3137.1,3136.4,3.73173367]
[1767818748528,0.96909464,3137.1,3136.5,0.54338925]
[1767818748928,0.96909464,3137.1,3136.5,3.73164853]
[1767818749128,0.96809464,3136.9,3135.7,0.54538925]
[1767818749333,0.96809464,3136.7,3135.7,0.002]
[1767818749530,0.96809464,3136.7,3135.7,3.19104898]
[1767818749912,0.96809464,3136.7,3135.7,0.002]
[1767818750812,0.96809464,3136.5,3135.7,0.002]
[1767818751023,0.96809464,3136.4,3136.0,0.002]
[1767818751206,0.96809464,3136.2,3135.7,0.002]
[1767818752731,0.96809464,3136.2,3135.6,0.002]
[1767818753317,0.96809464,3136.1,3135.6,0.002]
[1767818756337,0.96809464,3136.0,3135.6,0.002]
[1767818756833,0.96809464,3136.0,3135.4,0.002]
[1767818757001,0.96809464,3135.9,3135.4,0.002]
[1767818760766,1.1486041,3136.3,3135.4,0.5772831]
[1767818761046,0.96809464,3136.2,3135.4,0.54538925]
[1767818761244,0.96809464,3136.2,3135.4,0.002]
[1767818761459,0.96809464,3136.0,3135.4,0.002]
[1767818761768,0.91686187,3135.9,3135.4,0.002]
[1767818762310,1.69754526,3136.1,3135.4,0.54538925]
[1767818762609,0.94498365,3136.1,3135.4,0.54538925]
[1767818763137,0.94498365,3136.1,3135.7,0.002]
[1767818763643,0.94498365,3136.2,3135.7,0.002]
[1767818764344,0.001,3136.4,3135.8,0.54338925]
[1767818764523,0.001,3136.4,3136.0,0.54338925]
[1767818765631,0.94498365,3137.0,3136.2,0.54338925]
[1767818765945,4.13277694,3137.0,3136.2,0.54338925]
[1767818766146,4.13277694,3137.0,3136.3,0.54338925]
[1767818766345,0.94498365,3136.9,3136.3,0.54338925]
[1767818766552,0.94498365,3136.9,3135.8,0.54338925]
[1767818766718,0.94498365,3136.9,3135.9,0.54338925]
[1767818767230,0.94498365,3136.9,3135.9,3.73224905]
[1767818767414,0.94498365,3136.9,3136.0,0.37322491]
[1767818767610,0.94498365,3136.7,3136.0,0.37322491]
[1767818769455,0.94498365,3136.7,3136.0,4.10537259]
[1767818769618,0.94498365,3136.7,3136.0,3.73214768]
[1767818769946,0.94498365,3136.7,3135.9,3.18880491]
[1767818770317,0.94498365,3136.7,3135.9,3.73219416]
[1767818771016,0.94498365,3136.7,3136.0,3.18877536]
[1767818771216,0.94498365,3136.7,3136.0,4.42427838]
[1767818771444,0.94498365,3136.7,3136.1,0.54338925]
[1767818771619,0.94498365,3136.7,3136.2,3.18857215]
[1767818771818,0.94498365,3137.0,3136.1,3.73202416]
[1767818772012,0.94498365,3137.0,3136.1,0.54338925]
[1767818772225,0.94498365,3136.9,3136.0,0.69211377]
[1767818772449,0.94498365,3136.9,3136.0,3.8808663]
[1767818772849,0.94498365,3136.9,3136.0,4.42425555]
[1767818773351,0.94498365,3136.9,3135.8,0.54338925]
[1767818773531,0.94498365,3136.7,3135.7,0.839]
[1767818773719,0.94498365,3136.5,3135.7,0.839]
[1767818774238,0.94498365,3136.5,3135.7,4.02805742]
[1767818775039,0.94498365,3136.5,3136.3,0.002]
[1767818775246,0.94498365,3136.3,3135.7,4.02805742]
[1767818775748,0.94498365,3136.3,3136.0,0.002]
[1767818778455,0.94498365,3136.6,3136.0,0.002]
[1767818778657,3.18908882,3136.7,3136.0,0.54538925]
[1767818778658,0.001,3136.7,3136.0,0.54538925]
[1767818778952,0.001,3136.7,3136.1,0.03188673]
[1767818779155,0.001,3136.7,3136.2,0.54338925]
[1767818780551,0.001,3136.7,3136.3,0.54338925]
[1767818780751,0.001,3137.1,3136.5,0.54338925]
[1767818782861,0.001,3137.1,3136.5,3.73165585]
[1767818783970,0.94498365,3137.6,3136.8,0.54338925]
[1767818784262,0.94498365,3137.9,3136.8,0.54338925]
[1767818784468,0.94498365,3137.9,3137.0,0.54338925]
[1767818784662,0.94498365,3137.9,3137.1,3.73104664]
[1767818785430,0.838,3138.1,3137.1,3.73104664]
[1767818785431,0.94598365,3138.1,3137.2,0.54338925]
[1767818786253,0.94498365,3138.0,3137.2,0.54338925]
[1767818786660,0.001,3138.1,3137.4,0.54338925]
[1767818787736,0.94598365,3138.1,3137.4,0.54338925]
[1767818789663,0.94598365,3138.1,3137.4,3.7306674]
[1767818790036,0.94598365,3138.1,3137.4,0.54338925]
[1767818790549,3.18734552,3138.4,3137.4,0.54338925]
[1767818790550,0.001,3138.4,3137.7,0.54338925]
[1767818791667,0.001,3138.4,3137.9,0.54338925]
[1767818793372,0.9657597,3138.8,3138.2,0.54338925]
[1767818793573,0.9667597,3139.2,3138.5,3.18623546]
[1767818795545,4.9978576,3140.6,3138.7,4.13514408]
[1767818795756,0.9657597,3140.0,3138.6,4.13522425]
[1767818796888,0.9657597,3139.8,3138.7,0.94911165]
[1767818797096,0.9657597,3139.6,3138.7,0.94911165]
[1767818797575,0.9657597,3139.6,3138.5,0.94911165]
[1767818799369,0.9657597,3139.5,3138.6,4.13524559]
[1767818799581,0.9657597,3139.5,3138.8,0.002]
[1767818800095,0.9667597,3139.3,3138.8,0.002]
[1767818801883,0.001,3139.3,3138.8,0.95111165]
[1767818802087,0.9657597,3139.7,3139.0,0.94911165]
[1767818804355,0.9657597,3139.6,3138.8,1.78711165]
[1767818804586,0.9657597,3139.5,3138.8,4.9730224]
[1767818804786,0.9657597,3139.5,3138.9,4.13491886]
[1767818805484,0.9657597,3139.5,3138.9,0.94911165]
[1767818805859,0.9657597,3139.5,3138.9,4.13493766]
[1767818807989,0.9657597,3139.5,3138.9,0.94911165]
[1767818808193,0.9657597,3139.4,3138.8,0.002]
[1767818810493,0.9657597,3139.2,3138.8,0.002]
[1767818814795,3.18536379,3139.4,3138.8,0.002]
[1767818814796,0.9657597,3139.4,3138.8,0.002]
[1767818814999,4.15110073,3139.4,3138.8,0.002]
[1767818815168,1.38086977,3139.3,3138.8,0.002]
[1767818815600,3.18464214,3140.1,3138.8,0.95111165]
[1767818815601,0.836,3139.9,3138.8,0.95111165]
[1767818815799,0.9657597,3139.8,3138.8,0.95111165]
[1767818815981,0.9657597,3139.8,3138.8,0.002]
[1767818817104,0.9657597,3139.6,3138.8,0.002]
[1767818817981,0.9657597,3139.6,3138.8,0.95111165]
[1767818818180,0.9657597,3139.5,3138.8,0.95111165]
[1767818819097,0.9657597,3139.5,3138.8,4.13702318]
[1767818819600,0.9657597,3139.5,3138.8,3.18791153]
[1767818819980,0.9657597,3139.5,3138.9,0.94911165]
[1767818820180,0.9657597,3139.5,3138.8,0.002]
[1767818820504,1.38084779,3139.5,3138.8,3.18792387]
[1767818820710,0.9657597,3139.4,3138.8,4.13703552]
[1767818821274,0.9657597,3140.0,3138.9,0.94911165]
[1767818821486,0.95861574,3140.7,3138.9,0.94911165]
[1767818821776,0.95861574,3140.5,3139.1,0.97465026]
[1767818821998,0.96635027,3140.3,3139.1,0.97465026]
[1767818823384,0.96635027,3140.1,3139.3,0.94459931]
[1767818823674,0.96635027,3140.1,3138.9,0.94459931]
[1767818823877,0.96635027,3140.1,3139.1,3.18562185]
[1767818824114,0.96635027,3139.9,3139.1,3.18762185]
[1767818826907,0.96635027,3139.9,3139.1,4.13222116]
[1767818827106,0.96635027,3139.9,3139.1,0.94659931]
[1767818827278,0.96635027,3140.2,3139.1,0.94659931]
[1767818827680,0.96635027,3140.1,3139.3,0.94459931]
[1767818827880,0.41508724,3140.0,3139.3,0.94459931]
[1767818828081,0.96635027,3139.9,3139.2,6.37104994]
[1767818828279,0.96635027,3139.9,3139.2,4.13012428]
[1767818828480,0.96635027,3140.1,3139.3,0.94459931]
[1767818828688,0.96635027,3140.9,3139.4,0.94459931]
[1767818828988,0.96635027,3140.9,3139.6,0.94459931]
[1767818830110,0.96635027,3140.9,3139.8,0.94459931]
[1767818830412,0.96635027,3140.8,3140.0,0.94459931]
[1767818830714,0.96635027,3140.8,3139.5,3.18513572]
[1767818830912,0.96635027,3140.6,3139.5,3.18513572]
[1767818831413,0.96635027,3140.6,3139.3,4.02141696]
[1767818831605,0.96635027,3140.6,3139.3,0.836]
[1767818831799,0.96635027,3140.6,3139.3,4.02134065]
[1767818832125,0.4150167,3140.7,3139.3,0.836]
[1767818832126,0.96635027,3140.4,3139.3,0.836]
[1767818832284,0.96635027,3140.2,3139.3,0.836]
[1767818832478,0.96635027,3140.2,3139.1,3.18754529]
[1767818832682,0.96635027,3140.2,3139.1,0.002]
[1767818832917,0.96635027,3140.2,3138.8,0.838]
[1767818833617,0.96635027,3140.2,3138.9,3.18575127]
[1767818833914,0.73347629,3140.3,3139.0,3.18570954]
[1767818833915,0.96635027,3140.0,3139.0,3.18570954]
[1767818834079,0.96635027,3140.0,3138.8,4.02390965]
[1767818834080,0.96635027,3139.8,3138.9,3.18577403]
[1767818834285,0.96635027,3139.8,3138.8,0.002]
[1767818834485,0.96635027,3139.8,3138.8,3.18790226]
[1767818835625,1.09657022,3140.3,3138.9,0.94459931]
[1767818835626,0.73347629,3140.3,3138.9,0.94459931]
[1767818835785,3.18440913,3140.3,3139.1,0.94459931]
[1767818836487,3.18540913,3140.3,3139.3,0.94459931]
[1767818836686,0.001,3140.3,3139.3,0.94459931]
[1767818838719,0.001,3140.3,3139.5,0.94459931]
[1767818838922,0.001,3140.3,3139.5,1.78059931]
[1767818839118,0.001,3140.3,3139.6,0.81512434]
[1767818841089,0.96735027,3140.3,3139.6,0.81512434]
[1767818841390,0.96735027,3140.3,3139.5,1.78059931]
[1767818841391,0.96735027,3140.3,3139.5,0.836]
[1767818841924,0.96735027,3140.3,3139.6,3.1850977]
[1767818843103,0.96735027,3140.3,3139.6,6.37021682]
[1767818843820,0.96735027,3140.3,3139.6,3.1850977]
[1767818844136,0.96735027,3140.3,3139.6,3.6816674]
[1767818845617,0.96735027,3140.3,3139.6,0.4965697]
[1767818846017,0.96735027,3140.3,3139.6,3.68166302]
[1767818847225,0.96635027,3140.2,3139.5,0.836]
[1767818847522,0.96635027,3140.0,3139.2,3.18552497]
[1767818848020,0.96735027,3140.0,3139.2,3.18552497]
[1767818848399,0.96735027,3140.0,3139.2,6.37104994]
[1767818848800,0.96735027,3140.0,3139.2,3.18552497]
[1767818849020,0.96735027,3140.0,3139.2,7.09176489]
[1767818851223,0.96635027,3140.8,3139.3,0.94459931]
[1767818851931,0.93354236,3140.6,3139.4,6.37064406]
[1767818853215,0.93354236,3140.6,3139.4,7.31547065]
[1767818853725,0.93354236,3140.6,3139.4,4.13014862]
[1767818854027,0.93354236,3140.2,3139.3,0.836]
[1767818855729,0.93354236,3140.2,3139.1,0.836]
[1767818856027,0.93354236,3140.2,3139.2,6.37104994]
[1767818856525,0.93354236,3140.1,3139.1,0.836]
[1767818856697,0.93354236,3140.1,3138.8,0.002]
[1767818856899,0.93354236,3139.9,3138.8,3.18791697]
[1767818857606,0.93354236,3139.9,3138.8,3.18787054]
[1767818857607,0.93354236,3139.8,3138.8,3.18787054]
[1767818857806,0.93354236,3139.6,3138.8,0.002]
[1767818858108,4.11867314,3139.6,3138.8,0.002]
[1767818858328,0.93354236,3139.5,3138.8,0.002]
[1767818859974,0.93354236,3139.5,3139.1,0.002]
[1767818860173,0.93354236,3139.4,3138.8,0.002]
[1767818860337,1.66393858,3139.4,3138.8,0.002]
[1767818860733,0.93354236,3139.3,3138.8,0.002]
[1767818862241,0.73039622,3139.4,3138.8,0.94682659]
[1767818862453,0.93354236,3139.6,3138.8,0.94682659]
[1767818863636,0.93354236,3139.6,3138.8,0.002]
[1767818864240,4.11876293,3139.5,3138.8,0.002]
[1767818864459,0.41187629,3139.4,3138.8,0.002]
[1767818865942,0.93354236,3139.3,3138.8,0.002]
[1767818866165,0.93354236,3139.3,3138.5,0.002]
[1767818866355,0.93354236,3139.1,3138.5,0.002]
[1767818866551,0.93354236,3139.1,3138.0,1.78082659]
[1767818866756,0.93354236,3138.9,3138.0,0.836]
[1767818867465,0.93354236,3138.9,3137.8,0.94482659]
[1767818867466,0.93354236,3138.9,3137.8,1.78082659]
[1767818868057,0.93354236,3138.9,3137.8,0.836]
[1767818868246,1.24790673,3139.0,3137.5,0.002]
[1767818868247,0.93354236,3138.7,3137.5,0.002]
[1767818868442,0.93354236,3138.5,3137.5,0.002]
[1767818868647,0.93354236,3138.4,3137.5,0.002]
[1767818870950,4.11982627,3138.5,3137.5,0.94682659]
[1767818871154,0.93354236,3138.4,3137.5,0.94682659]
[1767818871676,4.95538607,3138.9,3137.5,0.94682659]
[1767818871872,0.93354236,3138.7,3137.8,0.002]
[1767818872075,0.53672928,3138.8,3137.8,0.94682659]
[1767818872246,4.11940626,3138.9,3137.8,0.94682659]
[1767818872451,0.93354236,3138.8,3137.8,0.94682659]
[1767818873139,0.93354236,3138.6,3137.8,0.94682659]
[1767818873346,0.93354236,3138.6,3137.8,0.002]
[1767818875289,3.18623546,3138.5,3137.8,0.002]
[1767818875488,4.85035885,3138.5,3137.8,0.002]
[1767818875853,0.93354236,3138.4,3137.8,0.002]
[1767818877483,0.93354236,3138.2,3137.8,0.002]
[1767818878649,0.93354236,3138.2,3136.5,0.002]
[1767818878853,0.93354236,3138.0,3136.5,0.002]
[1767818879185,0.93354236,3137.8,3136.5,0.002]
[1767818879385,0.93354236,3137.4,3136.5,0.002]
[1767818881058,0.93354236,3137.4,3136.6,0.836]
[1767818881285,0.93354236,3137.4,3136.6,1e-08]
[1767818881458,0.93354236,3137.2,3136.6,1e-08]
[1767818882867,0.93354236,3137.2,3136.5,0.002]
[1767818883066,4.89697975,3137.1,3136.5,0.002]
[1767818883266,0.97841801,3137.0,3136.5,0.002]